fUST/lending_fUST_20240707
["ID","MTS","AMOUNT","RATE_DAILY","PERIOD"]
[331405758,1720347142630,-624.61211488,0.00046027,120]
[331405759,1720347142639,-2966.16,0.00046027,120]
[331405760,1720347142647,-500.0,0.00046027,120]
[331405761,1720347142657,-757.52,0.00046027,120]
[331405762,1720347142668,-1087.62,0.00046027,120]
[331405763,1720347142677,-500.0,0.00046027,120]
[331405764,1720347142685,-667.57,0.00046027,120]
[331405765,1720347142695,-500.0,0.00046027,120]
[331405766,1720347142704,-841.97,0.00046027,120]
[331405767,1720347142713,-1485.95,0.00046027,120]
[331405768,1720347142722,-500.0,0.00046027,120]
[331405769,1720347142731,-2654.48,0.00046027,120]
[331405770,1720347142740,-2654.48,0.00046027,120]
[331405771,1720347142749,-500.0,0.00046027,120]
[331405772,1720347142906,-7224.58,0.00046027,120]
[331405773,1720347142929,-500.0,0.00046027,120]
[331405774,1720347142939,-500.0,0.00046027,120]
[331405775,1720347142949,-2906.61,0.00046027,120]
[331405776,1720347142958,-329.48784056,0.00046027,120]
[331405777,1720347142968,-778.38,0.00046027,120]
[331405778,1720347142977,-500.0,0.00046027,120]
[331405779,1720347142987,-641.22,0.00046027,120]
[331405780,1720347142997,-677.83,0.00046027,120]
[331405781,1720347143007,-500.0,0.00046027,120]
[331405782,1720347143017,-950.32,0.00046027,120]
[331405783,1720347143027,-500.0,0.00046027,120]
[331405784,1720347143037,-791.08,0.00046027,120]
[331405785,1720347143048,-500.0,0.00046027,120]
[331405786,1720347143057,-4029.35,0.00046027,120]
[331405787,1720347143067,-3693.57,0.00046027,120]
[331405788,1720347143076,-1139.2,0.00046027,120]
[331405789,1720347143085,-679.83,0.00046027,120]
[331405790,1720347143094,-500.0,0.00046027,120]
[331405791,1720347143105,-500.0,0.00046027,120]
[331405792,1720347143116,-681.62,0.00046027,120]
[331405793,1720347143127,-841.38,0.00046027,120]
[331405794,1720347143136,-19997.62,0.00046027,120]
[331405795,1720347143146,-500.0,0.00046027,120]
[331405796,1720347143155,-500.0,0.00046027,120]
[331405797,1720347143164,-500.0,0.00046027,120]
[331405798,1720347143173,-1478.86,0.00046027,120]
[331405799,1720347143183,-554.68040739,0.00046027,120]
[331405800,1720347143192,-9165.57,0.00046027,120]
[331405801,1720347143202,-500.0,0.00046027,120]
[331405802,1720347143211,-500.0,0.00046027,120]
[331405803,1720347143220,-500.0,0.00046027,120]
[331405804,1720347143230,-2498.75,0.00046027,120]
[331405805,1720347143240,-500.0,0.00046027,120]
[331405806,1720347143250,-500.0,0.00046027,120]
[331405807,1720347143260,-1179.34,0.00046027,120]
[331405808,1720347143270,-500.0,0.00046027,120]
[331405809,1720347143279,-500.0,0.00046027,120]
[331405810,1720347143289,-500.0,0.00046027,120]
[331405811,1720347143300,-1048.51,0.00046027,120]
[331405812,1720347143312,-2474.14,0.00046027,120]
[331405813,1720347143322,-500.0,0.00046027,120]
[331405814,1720347143331,-808.69,0.00046027,120]
[331405815,1720347143342,-587.02,0.00046027,120]
[331405816,1720347143351,-500.0,0.00046027,120]
[331405817,1720347143362,-500.0,0.00046027,30]
[331405818,1720347143371,-500.0,0.00046027,120]
[331405819,1720347143382,-3741.22,0.00046027,120]
[331405820,1720347143392,-531.11,0.00046027,120]
[331405821,1720347143402,-382.59657334,0.00046027,120]
[331405822,1720347143412,-780.81,0.00046027,120]
[331405823,1720347143424,-2000.34,0.00046027,120]
[331405824,1720347143437,-500.0,0.00046027,120]
[331405825,1720347143448,-500.0,0.00046027,120]
[331405826,1720347143462,-500.0,0.00046027,120]
[331405827,1720347143471,-500.0,0.00046027,120]
[331405828,1720347143481,-19236.53,0.00046027,120]
[331405829,1720347143490,-500.0,0.00046027,120]
[331405830,1720347143499,-3413.69,0.00046027,120]
[331405831,1720347143509,-500.0,0.00046027,120]
[331405832,1720347143519,-500.0,0.00046027,120]
[331405833,1720347143528,-1250.27,0.00046027,120]
[331405834,1720347143537,-500.0,0.00046027,120]
[331405835,1720347143546,-1121.56,0.00046027,120]
[331405836,1720347143555,-500.0,0.00046027,120]
[331405837,1720347143565,-500.0,0.00046027,120]
[331405838,1720347143574,-500.0,0.00046027,120]
[331405839,1720347143583,-734.73,0.00046027,120]
[331405840,1720347143593,-1092.13,0.00046027,120]
[331405841,1720347143602,-500.0,0.00046027,120]
[331405842,1720347143611,-1828.14,0.00046027,120]
[331405843,1720347143620,-500.0,0.00046027,120]
[331405844,1720347143629,-2409.9,0.00046027,120]
[331405845,1720347143639,-1905.14,0.00046027,120]
[331405846,1720347143648,-882.47,0.00046027,120]
[331405847,1720347143657,-2825.71,0.00046027,120]
[331405848,1720347143667,-500.0,0.00046027,120]
[331405849,1720347143676,-500.0,0.00046027,120]
[331405850,1720347143685,-639.95,0.00046027,120]
[331405851,1720347143696,-500.0,0.00046027,120]
[331405852,1720347143706,-602.2677643,0.00046027,120]
[331405853,1720347143715,-1399.76,0.00046027,120]
[331405854,1720347143725,-1399.76,0.00046027,120]
[331405855,1720347143735,-1122.0,0.00046027,120]
[331405856,1720347143744,-1122.0,0.00046027,120]
[331405857,1720347143754,-1802.35,0.00046027,120]
[331405858,1720347143763,-1426.86,0.00046027,120]
[331405859,1720347143772,-500.0,0.00046027,120]
[331405860,1720347143781,-420.68,0.00046027,120]
[331405861,1720347143791,-1266.29,0.00046027,120]
[331405862,1720347143803,-500.0,0.00046027,120]
[331405863,1720347143812,-500.0,0.00046027,120]
[331405864,1720347143821,-500.0,0.00046027,120]
[331405865,1720347143830,-500.0,0.00046027,120]
[331405866,1720347143841,-626.78,0.00046027,120]
[331405867,1720347143851,-477.61,0.00046027,120]
[331405868,1720347143861,-500.0,0.00046027,120]
[331405869,1720347143870,-500.0,0.00046027,120]
[331405870,1720347143883,-500.0,0.00046027,120]
[331405871,1720347143893,-943.8,0.00046027,120]
[331405872,1720347143903,-500.0,0.00046027,120]
[331405873,1720347143912,-2629.96,0.00046027,120]
[331405874,1720347143922,-1281.3,0.00046027,120]
[331405875,1720347143932,-500.0,0.00046027,120]
[331405876,1720347143942,-500.0,0.00046027,120]
[331405877,1720347143952,-500.0,0.00046027,120]
[331405878,1720347143962,-280.77,0.00046027,120]
[331405879,1720347143972,-749.98,0.00046027,120]
[331405880,1720347143981,-500.0,0.00046027,120]
[331405881,1720347143991,-429.83,0.00046027,120]
[331405882,1720347144001,-686.76,0.00046027,120]
[331405883,1720347144010,-1167.5,0.00046027,120]
[331405884,1720347144019,-818.05,0.00046027,120]
[331405885,1720347144029,-718.68,0.00046027,120]
[331405886,1720347144039,-2844.1,0.00046027,120]
[331405887,1720347144048,-500.0,0.00046027,21]
[331405888,1720347144057,-500.0,0.00046027,120]
[331405889,1720347144067,-266.09,0.00046027,120]
[331405890,1720347144080,-500.0,0.00046027,120]
[331405891,1720347144089,-500.0,0.00046027,120]
[331405892,1720347144100,-500.0,0.00046027,120]
[331405893,1720347144109,-500.0,0.00046027,120]
[331405894,1720347144122,-243.58531435,0.00046027,120]
[331405916,1720347949290,523.45,0.00010959,2]
[331405921,1720348015311,155.11136962,0.00010959,2]
[331405922,1720348016695,294.51676518,0.00010959,2]
[331405923,1720348020051,436.29299095,0.00013283,2]
[331405929,1720348061361,5341.04343432,0.00010959,2]
[331405930,1720348063110,1409.92715609,0.00010959,2]
[331405940,1720348115418,261.71,0.00010959,2]
[331405943,1720348126172,218.09,0.00010959,2]
[331405945,1720348139706,181.74,0.00010959,2]
[331405946,1720348148863,151.45,0.00010959,2]
[331405950,1720348158542,757.3,0.00010959,2]
[331405955,1720348197140,458.22974675,0.00014999,2]
[331406038,1720348239139,-300.0,0.00016244,2]
[331406040,1720348239149,-396.86262553,0.00016244,2]
[331406042,1720348239165,-7680.67991923,0.00016245,2]
[331406044,1720348239179,-24505.50119162,0.00016245,2]
[331406046,1720348239193,-33415.40007195,0.00016245,2]
[331406047,1720348239207,-57229.3410026,0.00016254,2]
[331406049,1720348239217,-17253.08901251,0.00016255,2]
[331406052,1720348239228,-42237.40544043,0.00016255,2]
[331406054,1720348239239,-3000.0,0.00016914,2]
[331406056,1720348239250,-250.0,0.00020362,2]
[331406058,1720348239261,-459.8175988,0.0002037,2]
[331406059,1720348239271,-750.0,0.00021096,2]
[331406061,1720348239282,-879.66892954,0.0002217,2]
[331406063,1720348239293,-157.413024,0.00022201,2]
[331406065,1720348239304,-65601.5811828,0.00022317,3]
[331406067,1720348239314,-24900.0,0.00022326,2]
[331406068,1720348239327,-166.666666,0.00022775,2]
[331406070,1720348239338,-734.957328,0.00023327,2]
[331406072,1720348239349,-166.666666,0.00023396,2]
[331406074,1720348239359,-250.0,0.0002361,2]
[331406076,1720348239370,-166.666666,0.00024017,2]
[331406078,1720348239381,-157.413032,0.00024148,2]
[331406079,1720348239392,-155.22827276,0.00024481,2]
[331406081,1720348239403,-166.666666,0.00024638,2]
[331406083,1720348239414,-166.666666,0.00025259,2]
[331406085,1720348239425,-500.0,0.0002538,2]
[331406087,1720348239436,-500.0,0.0002538,2]
[331406089,1720348239448,-330.93199643,0.0002538,2]
[331406090,1720348239458,-500.0,0.0002538,2]
[331406092,1720348239470,-500.0,0.0002538,2]
[331406094,1720348239481,-339.95630241,0.0002538,2]
[331406096,1720348239492,-193.9537406,0.0002538,2]
[331406098,1720348239502,-500.0,0.0002538,2]
[331406099,1720348239513,-500.0,0.0002538,2]
[331406100,1720348239524,-80311.01014307,0.0002538,2]
[331406101,1720348239535,-8952.40658376,0.00025381,3]
[331406207,1720348241142,-915.92073402,0.00016144,2]
[331406210,1720348241152,-56649.17459904,0.00025381,3]
[331406213,1720348241168,-131203.162366,0.00025381,3]
[331406216,1720348241179,-88888.0,0.00025391,3]
[331406219,1720348241189,-30000.0,0.00025501,2]
[331406221,1720348241200,-52119.39254387,0.00025501,2]
[331406223,1720348241210,-571.96142409,0.00025869,7]
[331406226,1720348241220,-579.51006506,0.00025869,2]
[331406228,1720348241231,-412.64839533,0.00025869,2]
[331406230,1720348241242,-166.666666,0.0002588,2]
[331406232,1720348241252,-3000.0,0.000265,2]
[331406234,1720348241263,-5068.878459,0.0002651,2]
[331406236,1720348241272,-182.65644103,0.00026574,2]
[331406237,1720348241282,-182.65644103,0.00026848,2]
[331406238,1720348241294,-154.68290005,0.00027194,2]
[331406239,1720348241303,-750.0,0.00027195,2]
[331406240,1720348241314,-2000.0,0.00029683,2]
[331406241,1720348241323,-170.38232151,0.0003,4]
[331406242,1720348241333,-780.23753275,0.0003027,2]
[331406243,1720348241343,-1405.0,0.00030803,2]
[331406244,1720348241352,-150.0,0.00030803,2]
[331406245,1720348241362,-620.0,0.00031371,2]
[331406247,1720348241372,-150.0,0.00031886,2]
[331406248,1720348241381,-500.0,0.00032876,5]
[331406250,1720348241391,-500.0,0.00032876,5]
[331406252,1720348241400,-500.0,0.00032876,5]
[331406254,1720348241409,-500.0,0.00032876,5]
[331406255,1720348241419,-204.50719285,0.00032876,5]
[331406257,1720348241428,-3358.13,0.00032876,5]
[331406259,1720348241438,-500.0,0.00032876,5]
[331406261,1720348241447,-554.26,0.00032876,5]
[331406262,1720348241458,-698.70605392,0.00032876,5]
[331406283,1720348245915,-63.42394608,0.00032876,5]
[331406285,1720348245925,-500.0,0.00032876,5]
[331406287,1720348245935,-500.0,0.00032876,5]
[331406290,1720348245945,-500.0,0.00032876,5]
[331406293,1720348245954,-500.0,0.00032876,5]
[331406294,1720348245963,-500.0,0.00032876,5]
[331406295,1720348245972,-500.0,0.00032876,5]
[331406296,1720348245982,-500.0,0.00032876,20]
[331406297,1720348245990,-500.0,0.00032876,5]
[331406298,1720348245999,-500.0,0.00032876,5]
[331406299,1720348246008,-500.0,0.00032876,5]
[331406300,1720348246017,-500.0,0.00032876,5]
[331406301,1720348246026,-554.26,0.00032876,5]
[331406302,1720348246035,-500.0,0.00032876,14]
[331406303,1720348246044,-2000.0,0.00032876,5]
[331406304,1720348246053,-500.0,0.00032876,5]
[331406305,1720348246063,-500.0,0.00032876,5]
[331406306,1720348246071,-500.0,0.00032876,5]
[331406307,1720348246081,-500.0,0.00032876,5]
[331406308,1720348246090,-500.0,0.00032876,5]
[331406309,1720348246099,-500.0,0.00032876,5]
[331406310,1720348246108,-500.0,0.00032876,5]
[331406311,1720348246117,-547.15748785,0.00032876,5]
[331406312,1720348246126,-500.0,0.0003315,5]
[331406313,1720348246135,-500.0,0.0003315,5]
[331406314,1720348246144,-500.0,0.0003315,5]
[331406315,1720348246153,-500.0,0.0003315,5]
[331406316,1720348246166,-3358.13,0.0003315,5]
[331406317,1720348246176,-762.13,0.0003315,5]
[331406318,1720348246185,-500.0,0.0003315,5]
[331406319,1720348246195,-500.0,0.0003315,20]
[331406320,1720348246206,-500.0,0.0003315,5]
[331406321,1720348246215,-500.0,0.0003315,5]
[331406322,1720348246225,-500.0,0.0003315,14]
[331406323,1720348246234,-2000.0,0.0003315,5]
[331406324,1720348246244,-750.0,0.00033295,2]
[331406325,1720348246254,-500.0,0.00033424,5]
[331406326,1720348246264,-500.0,0.00033424,5]
[331406327,1720348246273,-500.0,0.00033424,5]
[331406328,1720348246282,-500.0,0.00033424,5]
[331406329,1720348246291,-3358.13,0.00033424,5]
[331406330,1720348246300,-762.13,0.00033424,5]
[331406331,1720348246309,-500.0,0.00033424,5]
[331406332,1720348246318,-500.0,0.00033424,5]
[331406333,1720348246327,-2000.0,0.00033424,5]
[331406334,1720348246337,-157.413024,0.0003364,2]
[331406335,1720348246346,-500.0,0.00033698,5]
[331406336,1720348246355,-222.6299883,0.00033698,5]
[331406337,1720348246364,-500.0,0.00033698,5]
[331406338,1720348246374,-3358.13,0.00033698,5]
[331406339,1720348246383,-762.13,0.00033698,5]
[331406340,1720348246392,-500.0,0.00033698,5]
[331406341,1720348246401,-500.0,0.00033698,5]
[331406342,1720348246411,-2000.0,0.00033698,5]
[331406343,1720348246420,-1405.0,0.00033803,2]
[331406344,1720348246430,-500.0,0.00033972,5]
[331406345,1720348246439,-500.0,0.00033972,5]
[331406346,1720348246449,-3358.13,0.00033972,5]
[331406347,1720348246458,-762.13,0.00033972,5]
[331406348,1720348246467,-500.0,0.00033972,5]
[331406349,1720348246476,-250.4,0.00033972,5]
[331406350,1720348246486,-2000.0,0.00033972,5]
[331406351,1720348246495,-500.0,0.00034246,5]
[331406352,1720348246503,-500.0,0.00034246,5]
[331406353,1720348246512,-3358.13,0.00034246,5]
[331406354,1720348246522,-762.13,0.00034246,5]
[331406355,1720348246531,-500.0,0.00034246,5]
[331406356,1720348246540,-500.0,0.0003452,5]
[331406357,1720348246552,-500.0,0.0003452,5]
[331406358,1720348246561,-3358.13,0.0003452,5]
[331406359,1720348246570,-762.13,0.0003452,5]
[331406360,1720348246579,-500.0,0.0003452,5]
[331406361,1720348246588,-155.51442144,0.00034602,2]
[331406362,1720348246598,-497.60998582,0.00034634,4]
[331406363,1720348246607,-435.0,0.00034642,2]
[331406364,1720348246616,-368.40357726,0.00034669,4]
[331406365,1720348246625,-17511.12731013,0.0003467,4]
[331406366,1720348246635,-360.67384349,0.0003467,4]
[331406367,1720348246645,-256.67016396,0.00034672,2]
[331406368,1720348246655,-500.0,0.00034794,5]
[331406369,1720348246664,-500.0,0.00034794,5]
[331406370,1720348246674,-3358.13,0.00034794,5]
[331406371,1720348246683,-762.13,0.00034794,5]
[331406372,1720348246693,-500.0,0.00034794,5]
[331406373,1720348246705,-734.957328,0.0003499,2]
[331406374,1720348246715,-500.0,0.00035068,5]
[331406375,1720348246724,-500.0,0.00035068,5]
[331406376,1720348246733,-3358.13,0.00035068,5]
[331406377,1720348246743,-762.13,0.00035068,5]
[331406378,1720348246752,-500.0,0.00035068,5]
[331406379,1720348246761,-515.39021683,0.00035342,5]
[331406380,1720348246770,-500.0,0.00035342,5]
[331406381,1720348246780,-500.0,0.00035342,5]
[331406382,1720348246789,-3358.13,0.00035342,5]
[331406383,1720348246798,-762.13,0.00035342,5]
[331406384,1720348246807,-500.0,0.00035342,5]
[331406385,1720348246817,-1501.24478952,0.00035615,2]
[331406386,1720348246827,-500.0,0.00035616,5]
[331406387,1720348246836,-500.0,0.00035616,5]
[331406388,1720348246845,-3358.13,0.00035616,5]
[331406389,1720348246855,-762.13,0.00035616,5]
[331406390,1720348246864,-600.0,0.00035616,5]
[331406391,1720348246874,-4402.42,0.00035616,3]
[331406392,1720348246883,-3668.68,0.00035616,3]
[331406393,1720348246893,-500.0,0.0003589,5]
[331406394,1720348246902,-500.0,0.0003589,5]
[331406395,1720348246912,-3358.13,0.0003589,5]
[331406396,1720348246921,-762.13,0.0003589,5]
[331406397,1720348246931,-397.26914581,0.00036,30]
[331406398,1720348246940,-500.0,0.00036164,5]
[331406399,1720348246951,-500.0,0.00036164,5]
[331406400,1720348246961,-3358.13,0.00036164,5]
[331406401,1720348246970,-762.13,0.00036164,5]
[331406402,1720348246980,-500.0,0.00036438,5]
[331406403,1720348246989,-486.01,0.00036438,5]
[331406404,1720348246998,-3358.13,0.00036438,5]
[331406405,1720348247008,-762.13,0.00036438,5]
[331406406,1720348247017,-500.0,0.00036712,5]
[331406407,1720348247027,-3358.13,0.00036712,5]
[331406408,1720348247036,-762.13,0.00036712,5]
[331406409,1720348247045,-1405.0,0.00036803,2]
[331406410,1720348247055,-500.0,0.00036986,5]
[331406411,1720348247064,-3358.13,0.00036986,5]
[331406412,1720348247073,-762.13,0.00036986,5]
[331406413,1720348247083,-500.0,0.0003726,5]
[331406414,1720348247092,-3358.13,0.0003726,5]
[331406415,1720348247101,-762.13,0.0003726,5]
[331406417,1720348247110,-500.0,0.00037534,5]
[331406419,1720348247120,-3358.13,0.00037534,5]
[331406421,1720348247129,-762.13,0.00037534,5]
[331406423,1720348247139,-500.0,0.00037808,5]
[331406425,1720348247148,-3358.13,0.00037808,5]
[331406426,1720348247159,-762.13,0.00037808,5]
[331406427,1720348247169,-500.0,0.00038082,5]
[331406428,1720348247180,-3358.13,0.00038082,5]
[331406429,1720348247189,-762.13,0.00038082,5]
[331406430,1720348247200,-500.0,0.00038356,5]
[331406431,1720348247210,-3358.13,0.00038356,5]
[331406432,1720348247220,-762.13,0.00038356,5]
[331406433,1720348247229,-264.97857403,0.00038499,2]
[331406434,1720348247240,-155.29042796,0.00038499,4]
[331406435,1720348247250,-500.0,0.0003863,5]
[331406436,1720348247259,-3358.13,0.0003863,5]
[331406437,1720348247270,-762.13,0.0003863,5]
[331406438,1720348247279,-578.92,0.00038904,5]
[331406439,1720348247288,-3358.13,0.00038904,5]
[331406440,1720348247298,-762.13,0.00038904,5]
[331406441,1720348247307,-3358.17038184,0.00039178,5]
[331406442,1720348247316,-762.15,0.00039178,5]
[331406443,1720348247326,-750.0,0.00039394,2]
[331406444,1720348247336,-1405.0,0.00039803,2]
[331406445,1720348247346,-4711.13030053,0.00039999,4]
[331406446,1720348247355,-176.75677781,0.00039999,4]
[331406447,1720348247364,-532.01362023,0.00039999,4]
[331406448,1720348247374,-1296.30551793,0.00040278,4]
[331406449,1720348247383,-155.60140174,0.00041095,4]
[331406450,1720348247393,-153.3853545,0.00041887,30]
[331406451,1720348247403,-618.37780238,0.0004192,30]
[331406452,1720348247412,-495.20736015,0.00041941,4]
[331406453,1720348247423,-156.24641232,0.00041941,4]
[331406454,1720348247432,-284.50722532,0.00041941,4]
[331406455,1720348247443,-153.3853545,0.00041998,30]
[331406456,1720348247454,-155.62808659,0.00041999,4]
[331406457,1720348247463,-182.58937595,0.00041999,4]
[331406458,1720348247473,-309.7057795,0.00041999,4]
[331406459,1720348247482,-618.37780238,0.00042015,30]
[331406460,1720348247492,-3104.26073298,0.00042086,30]
[331406461,1720348247502,-1637.17905575,0.00042139,30]
[331406462,1720348247511,-3104.26073298,0.0004214,30]
[331406463,1720348247523,-452.8565937,0.00042156,30]
[331406464,1720348247533,-154.89931235,0.00042229,4]
[331406465,1720348247543,-195.36743126,0.00042229,2]
[331406466,1720348247555,-618.37780238,0.00042256,30]
[331406467,1720348247564,-452.8565937,0.00042259,30]
[331406468,1720348247574,-3104.26073298,0.00042344,30]
[331406469,1720348247583,-727.82110719,0.00042398,4]
[331406470,1720348247592,-1637.17905575,0.0004241,30]
[331406471,1720348247602,-618.37780238,0.0004244,30]
[331406472,1720348247612,-452.8565937,0.0004246,30]
[331406473,1720348247621,-6366.89,0.00042465,120]
[331406474,1720348247631,-1637.17905575,0.00042482,30]
[331406475,1720348247640,-452.8565937,0.00042532,30]
[331406476,1720348247651,-452.8565937,0.00042643,30]
[331406477,1720348247660,-1637.17905575,0.00042778,30]
[331406478,1720348247669,-618.37780238,0.00042791,30]
[331406479,1720348247679,-1405.0,0.00042803,2]
[331406480,1720348247688,-452.8565937,0.00042836,30]
[331406481,1720348247698,-618.37780238,0.00042885,30]
[331406482,1720348247708,-175.1,0.00042967,31]
[331406483,1720348247718,-152.0,0.00042967,31]
[331406484,1720348247728,-3104.26073298,0.00042983,30]
[331406485,1720348247738,-2040.34238499,0.00043,120]
[331406486,1720348247748,-153.3853545,0.00043022,30]
[331406487,1720348247758,-6366.89,0.0004315,120]
[331406488,1720348247767,-1637.17905575,0.00043171,30]
[331406489,1720348247776,-3104.26073298,0.00043194,30]
[331406490,1720348247786,-452.8565937,0.00043199,30]
[331406491,1720348247795,-452.8565937,0.0004323,30]
[331406492,1720348247805,-1637.17905575,0.00043233,30]
[331406493,1720348247814,-3104.26073298,0.0004325,30]
[331406494,1720348247824,-3104.26073298,0.00043292,30]
[331406495,1720348247833,-150.42281844,0.00043409,30]
[331406496,1720348247842,-618.37780238,0.00043472,30]
[331406497,1720348247851,-153.3853545,0.00043476,30]
[331406498,1720348247860,-3104.26073298,0.00043509,30]
[331406499,1720348247869,-150.42281844,0.00043628,30]
[331406500,1720348247879,-153.3853545,0.00043715,30]
[331406501,1720348247888,-683.0,0.00043726,30]
[331406502,1720348247898,-6366.89,0.00043835,120]
[331406503,1720348247908,-150.69860279,0.00043953,2]
[331406504,1720348247917,-1637.17905575,0.00043995,30]
[331406505,1720348247926,-452.8565937,0.00044017,30]
[331406506,1720348247935,-1637.17905575,0.00044036,30]
[331406507,1720348247944,-1637.17905575,0.00044068,30]
[331406508,1720348247956,-618.37780238,0.00044072,30]
[331406509,1720348247967,-618.37780238,0.00044073,30]
[331406510,1720348247977,-3104.26073298,0.00044118,30]
[331406511,1720348247987,-3104.26073298,0.00044126,30]
[331406512,1720348247996,-3104.26073298,0.0004419,30]
[331406513,1720348248006,-1637.17905575,0.00044215,30]
[331406514,1720348248015,-618.37780238,0.00044302,30]
[331406515,1720348248026,-618.37780238,0.00044369,30]
[331406516,1720348248036,-618.37780238,0.00044402,30]
[331406517,1720348248046,-618.37780238,0.0004442,30]
[331406518,1720348248056,-154.76146562,0.00044431,55]
[331406519,1720348248066,-618.37780238,0.00044516,30]
[331406520,1720348248075,-6366.89,0.0004452,120]
[331406521,1720348248085,-3104.26073298,0.00044533,30]
[331406522,1720348248094,-618.37780238,0.00044539,30]
[331406523,1720348248105,-452.8565937,0.00044564,30]
[331406524,1720348248114,-3104.26073298,0.00044568,30]
[331406525,1720348248124,-618.37780238,0.00044584,30]
[331406526,1720348248134,-3104.26073298,0.00044673,30]
[331406527,1720348248144,-1637.17905575,0.00044705,30]
[331406528,1720348248154,-1637.17905575,0.0004475,30]
[331406529,1720348248165,-618.37780238,0.00044868,30]
[331406530,1720348248176,-1637.17905575,0.00044881,30]
[331406531,1720348248185,-3104.26073298,0.00044903,30]
[331406532,1720348248195,-3104.26073298,0.00044915,30]
[331406533,1720348248209,-452.8565937,0.00044941,30]
[331406534,1720348248218,-3104.26073298,0.00044984,30]
[331406535,1720348248227,-452.8565937,0.00045035,30]
[331406536,1720348248240,-157.413024,0.00045078,2]
[331406537,1720348248250,-618.37780238,0.0004508,30]
[331406538,1720348248260,-3104.26073298,0.00045134,30]
[331406539,1720348248269,-452.8565937,0.00045162,30]
[331406540,1720348248278,-618.37780238,0.00045168,30]
[331406541,1720348248288,-6366.89,0.00045205,120]
[331406542,1720348248297,-452.8565937,0.00045223,30]
[331406543,1720348248306,-618.37780238,0.00045232,30]
[331406544,1720348248316,-150.42281844,0.00045253,30]
[331406545,1720348248325,-618.37780238,0.00045387,30]
[331406546,1720348248335,-1637.17905575,0.00045403,30]
[331406547,1720348248344,-750.0,0.00045494,2]
[331406548,1720348248354,-153.3853545,0.00045521,30]
[331406549,1720348248364,-1637.17905575,0.00045533,30]
[331406550,1720348248373,-618.37780238,0.00045576,30]
[331406551,1720348248383,-1637.17905575,0.00045715,30]
[331406552,1720348248392,-452.8565937,0.00045744,30]
[331406553,1720348248401,-1000.0,0.00045754,7]
[331406555,1720348248411,-452.8565937,0.00045771,30]
[331406556,1720348248420,-1000.0,0.00045783,7]
[331406559,1720348248430,-155.49,0.000458,39]
[331406560,1720348248439,-1000.0,0.00045801,7]
[331406562,1720348248451,-1405.0,0.00045803,2]
[331406564,1720348248460,-1000.0,0.00045808,7]
[331406565,1720348248470,-1000.0,0.00045816,7]
[331406566,1720348248480,-1000.0,0.00045818,7]
[331406567,1720348248489,-1000.0,0.00045827,7]
[331406568,1720348248498,-1000.0,0.00045828,7]
[331406569,1720348248508,-1000.0,0.0004585,7]
[331406571,1720348248518,-1000.0,0.00045888,7]
[331406573,1720348248528,-6366.89,0.0004589,120]
[331406575,1720348248537,-1000.0,0.00045908,7]
[331406576,1720348248547,-1000.0,0.00045929,7]
[331406578,1720348248559,-1000.0,0.00045946,7]
[331406580,1720348248568,-153.3853545,0.00045968,30]
[331406581,1720348248577,-1000.0,0.00045978,7]
[331406582,1720348248587,-1000.0,0.00045982,7]
[331406583,1720348248595,-452.8565937,0.00045988,30]
[331406585,1720348248605,-153.3853545,0.00045995,30]
[331406587,1720348248614,-373.0,0.00046,22]
[331406588,1720348248625,-373.0,0.00046,22]